bitfinex/quotes_BTCUSD_20241025
["timestamp","ask_amount","ask_price","bid_price","bid_amount"]
[1729854422403,0.500824,67853.0,67852.0,0.72439395]
[1729854423804,0.500824,67853.0,67852.0,0.71702209]
[1729854424217,0.500824,67853.0,67852.0,0.71241468]
[1729854424419,0.500824,67853.0,67852.0,0.72439395]
[1729854426365,0.500824,67853.0,67852.0,0.71241468]
[1729854430443,0.500824,67853.0,67852.0,0.59738281]
[1729854430653,0.500824,67853.0,67852.0,0.71241468]
[1729854431735,0.500824,67853.0,67852.0,0.72439395]
[1729854432797,0.500824,67853.0,67852.0,0.83942582]
[1729854433010,0.500824,67853.0,67852.0,0.72439395]
[1729854433221,0.500824,67853.0,67852.0,0.83942582]
[1729854436567,0.353449,67853.0,67852.0,0.86242582]
[1729854436791,0.000914,67856.0,67855.0,0.475173]
[1729854436997,0.000914,67856.0,67855.0,0.86771982]
[1729854437208,1e-06,67858.0,67857.0,0.277368]
[1729854437429,1e-06,67858.0,67857.0,0.63765108]
[1729854438082,0.00167,67866.0,67857.0,0.63765108]
[1729854438083,0.00167,67866.0,67865.0,0.03]
[1729854438338,4e-05,67880.0,67865.0,0.03]
[1729854438339,0.22144961,67873.0,67868.0,0.477944]
[1729854438567,0.22144961,67873.0,67868.0,0.87049082]
[1729854439012,4e-05,67880.0,67868.0,0.87049082]
[1729854439438,4e-05,67880.0,67879.0,0.16732]
[1729854439660,4e-05,67880.0,67879.0,0.71026604]
[1729854439875,4e-05,67880.0,67879.0,0.72224135]
[1729854443401,4e-05,67880.0,67879.0,0.62254135]
[1729854443611,4e-05,67880.0,67879.0,0.61517193]
[1729854443835,4e-05,67880.0,67879.0,0.63578376]
[1729854445525,4e-05,67880.0,67879.0,0.63580832]
[1729854446192,8e-05,67880.0,67879.0,0.63580832]
[1729854447861,8e-05,67880.0,67879.0,0.4174297]
[1729854448088,8e-05,67880.0,67879.0,0.53229649]
[1729854448493,8e-05,67880.0,67879.0,0.53729649]
[1729854450686,8e-05,67880.0,67879.0,0.53729621]
[1729854451418,8e-05,67880.0,67879.0,0.54466519]
[1729854451823,8e-05,67880.0,67879.0,0.64006519]
[1729854452484,8e-05,67880.0,67879.0,0.83703198]
[1729854452697,8e-05,67880.0,67879.0,0.72216519]
[1729854453141,8e-05,67880.0,67879.0,0.72216506]
[1729854454305,8e-05,67880.0,67879.0,0.7201906]
[1729854454523,8e-05,67880.0,67879.0,0.73216506]
[1729854455075,8e-05,67880.0,67879.0,0.87003185]
[1729854455331,8e-05,67880.0,67879.0,0.75516506]
[1729854455951,8e-05,67880.0,67879.0,0.87003185]
[1729854456391,0.000904,67880.0,67879.0,0.87003185]
[1729854457915,0.000904,67880.0,67879.0,0.87003177]
[1729854458142,0.000904,67880.0,67879.0,0.75516498]
[1729854461707,0.000904,67880.0,67879.0,0.75516448]
[1729854462925,0.000904,67880.0,67879.0,0.74779594]
[1729854465484,0.000904,67880.0,67879.0,0.74779586]
[1729854468127,0.000904,67880.0,67879.0,0.65239586]
[1729854468358,0.00072663,67880.0,67879.0,0.65239586]
[1729854469096,0.00072663,67880.0,67879.0,0.65239583]
[1729854470861,0.19140975,67888.0,67887.0,0.162303]
[1729854471093,0.19140975,67888.0,67887.0,0.38177502]
[1729854471325,0.0769,67892.0,67891.0,0.147294]
[1729854471582,0.0769,67892.0,67891.0,0.16189923]
[1729854474202,0.1686,67896.0,67895.0,0.01]
[1729854474422,0.1686,67896.0,67895.0,0.16189123]
[1729854477554,0.1686,67896.0,67895.0,0.16689123]
[1729854477786,0.16864,67896.0,67895.0,0.16689123]
[1729854479672,0.169464,67896.0,67895.0,0.16689123]
[1729854484627,0.000864,67896.0,67895.0,0.16689123]
[1729854487391,0.000864,67896.0,67895.0,0.53884465]
[1729854487607,0.000864,67896.0,67895.0,0.31739504]
[1729854488290,0.000864,67896.0,67895.0,0.32239504]
[1729854488953,0.000864,67896.0,67895.0,0.43726183]
[1729854489347,0.000864,67896.0,67895.0,0.43726126]
[1729854489583,0.000864,67896.0,67895.0,0.43726132]
[1729854489804,0.000864,67896.0,67895.0,0.54726132]
[1729854490220,0.000864,67896.0,67895.0,0.53726132]
[1729854490431,0.000864,67896.0,67895.0,0.56756221]
[1729854491072,0.000864,67896.0,67895.0,0.55756221]
[1729854491284,0.000864,67896.0,67895.0,0.53226132]
[1729854491498,0.000864,67896.0,67895.0,0.41739453]
[1729854491719,0.000864,67896.0,67895.0,0.53226132]
[1729854492397,0.000864,67896.0,67895.0,0.5276566]
[1729854494744,0.000864,67896.0,67895.0,0.40278981]
[1729854494949,0.000864,67896.0,67895.0,0.41278981]
[1729854495623,0.000864,67896.0,67895.0,0.5276566]
[1729854497268,0.000864,67896.0,67895.0,0.41278981]
[1729854499154,0.000864,67896.0,67895.0,0.162286]
[1729854500089,0.095264,67896.0,67895.0,0.162286]
[1729854500845,0.000864,67896.0,67895.0,0.162286]
[1729854502213,0.000864,67896.0,67895.0,0.27715279]
[1729854504088,0.000864,67896.0,67895.0,0.162286]
[1729854504847,0.000864,67896.0,67895.0,0.16689074]
[1729854505991,0.000864,67896.0,67895.0,0.26689074]
[1729854511347,0.000864,67896.0,67895.0,0.26689086]
[1729854515278,0.000864,67896.0,67895.0,0.26689089]
[1729854518864,0.000864,67896.0,67895.0,0.66381961]
[1729854519313,0.000864,67896.0,67895.0,0.73476149]
[1729854519527,0.00104,67900.0,67899.0,0.60141058]
[1729854519755,0.00104,67900.0,67899.0,1.11270909]
[1729854520013,0.00104,67900.0,67899.0,1.1127089]
[1729854520679,0.00104,67900.0,67899.0,1.04867756]
[1729854521103,0.00104,67900.0,67899.0,1.01296464]
[1729854521315,0.00104,67900.0,67899.0,1.05867654]
[1729854521528,0.00104,67900.0,67899.0,1.01296464]
[1729854522165,0.00104,67900.0,67899.0,1.00296464]
[1729854522387,0.00104,67900.0,67899.0,1.0129632]
[1729854522632,0.00104,67900.0,67899.0,1.1225671]
[1729854523090,0.00104,67900.0,67899.0,1.03374433]
[1729854523301,1e-06,67900.0,67899.0,1.12143493]
[1729854523518,1e-06,67900.0,67899.0,1.14334823]
[1729854523771,1e-06,67900.0,67899.0,1.03374433]
[1729854524206,1e-06,67900.0,67899.0,1.14332371]
[1729854524424,1e-06,67900.0,67899.0,1.03374433]
[1729854524868,1e-06,67900.0,67899.0,1.14332371]
[1729854525077,1e-06,67900.0,67899.0,1.14330374]
[1729854525489,1e-06,67900.0,67899.0,1.03163986]
[1729854526167,1e-06,67900.0,67899.0,1.1412029]
[1729854526377,1e-06,67900.0,67899.0,1.03163986]
[1729854527220,0.000825,67900.0,67899.0,1.03163986]
[1729854528503,1e-06,67900.0,67899.0,1.11923713]
[1729854528953,1e-06,67900.0,67899.0,1.03163986]
[1729854529378,1e-06,67900.0,67899.0,1.09733147]
[1729854530488,1e-06,67900.0,67899.0,0.94609058]
[1729854531128,1e-06,67900.0,67899.0,0.88039897]
[1729854531552,1e-06,67900.0,67899.0,0.92418458]
[1729854531762,1e-06,67900.0,67899.0,0.94609058]
[1729854532421,1e-06,67900.0,67899.0,0.88039897]
[1729854533299,0.00167,67917.0,67916.0,0.16224]
[1729854533516,0.29844961,67923.0,67922.0,0.147227]
[1729854533753,0.077,67923.0,67922.0,0.152227]
[1729854533991,0.08344288,67923.0,67922.0,0.152227]
[1729854534212,0.077,67923.0,67922.0,0.152227]
[1729854534430,0.077,67923.0,67922.0,0.147227]
[1729854534684,0.077,67923.0,67922.0,0.152227]
[1729854534902,0.077,67923.0,67922.0,0.147227]
[1729854536099,0.11486679,67935.0,67932.0,0.147204]
[1729854536322,0.00644323,67934.0,67930.0,0.294419]
[1729854536593,0.00844323,67934.0,67931.0,0.147207]
[1729854536828,0.00844323,67934.0,67926.0,0.294436]
[1729854536829,0.174,67933.0,67932.0,0.147206]
[1729854537272,0.17931532,67933.0,67932.0,0.147206]
[1729854537509,0.174,67933.0,67932.0,0.147206]
[1729854537801,0.1751369,67933.0,67932.0,0.147206]
[1729854538429,0.1751369,67933.0,67930.0,0.147209]
[1729854538647,0.002,67931.0,67930.0,0.147209]
[1729854539168,0.00112822,67931.0,67930.0,0.147209]
[1729854539389,0.00112822,67931.0,67930.0,0.14721]
[1729854539614,0.174,67933.0,67927.0,0.22144961]
[1729854539834,0.00112822,67931.0,67928.0,0.005]
[1729854540055,0.00113256,67932.0,67931.0,0.147208]
[1729854540279,0.00113256,67932.0,67931.0,0.152208]
[1729854541261,0.174824,67933.0,67932.0,0.152206]
[1729854541741,0.174824,67933.0,67932.0,0.005]
[1729854541983,0.174824,67933.0,67932.0,0.152206]
[1729854542197,0.17595498,67933.0,67932.0,0.157206]
[1729854542425,0.17595498,67933.0,67932.0,0.152206]
[1729854542649,0.174824,67933.0,67932.0,0.152206]
[1729854543259,0.174824,67933.0,67932.0,0.157206]
[1729854543489,0.174824,67933.0,67932.0,0.152206]
[1729854543706,0.174824,67933.0,67932.0,0.157206]
[1729854544369,0.000824,67933.0,67932.0,0.157206]
[1729854546576,0.000824,67933.0,67932.0,0.152206]
[1729854546778,0.000824,67933.0,67932.0,0.157206]
[1729854547244,0.000824,67933.0,67932.0,0.162206]
[1729854550653,0.000824,67933.0,67932.0,0.157206]
[1729854550903,0.000824,67933.0,67932.0,0.005]
[1729854551126,0.000824,67933.0,67932.0,0.152206]
[1729854551127,0.179224,67933.0,67932.0,0.152206]
[1729854551579,0.18607953,67933.0,67932.0,0.152206]
[1729854552030,0.18607953,67933.0,67932.0,0.005]
[1729854552286,0.18607953,67933.0,67931.0,0.005]
[1729854552512,0.11486679,67932.0,67930.0,0.005]
[1729854552717,0.18607953,67933.0,67930.0,0.01]
[1729854552718,0.00573231,67931.0,67930.0,0.01]
[1729854552942,0.00573231,67931.0,67930.0,0.15721]
[1729854553172,0.179224,67933.0,67930.0,0.01]
[1729854553393,0.179224,67933.0,67932.0,0.147206]
[1729854554328,0.179224,67933.0,67931.0,0.294415]
[1729854554329,0.181224,67933.0,67931.0,0.147208]
[1729854554554,0.179224,67933.0,67931.0,0.147207]
[1729854554774,0.179224,67933.0,67932.0,0.147206]
[1729854555199,0.179224,67933.0,67930.0,0.01]
[1729854555410,0.179224,67933.0,67930.0,0.005]
[1729854555636,0.11486679,67932.0,67930.0,0.005]
[1729854555861,0.11486679,67932.0,67929.0,0.005]
[1729854556079,0.11486679,67932.0,67929.0,0.152212]
[1729854556322,0.11486679,67932.0,67929.0,0.005]
[1729854556796,0.11486679,67932.0,67925.0,0.005]
[1729854557037,0.11486679,67929.0,67925.0,0.01]
[1729854557283,0.000824,67933.0,67923.0,0.005]
[1729854557284,0.1708,67925.0,67923.0,0.005]
[1729854557526,0.1708,67925.0,67923.0,0.152224]
[1729854557760,0.1708,67925.0,67923.0,0.152223]
[1729854557986,0.1708,67925.0,67923.0,0.29945]
[1729854558237,0.1708,67925.0,67923.0,0.005]
[1729854558726,0.1708,67925.0,67923.0,0.152224]
[1729854559651,0.1708,67925.0,67923.0,0.005]
[1729854560363,0.1708,67925.0,67924.0,0.147223]
[1729854560598,0.1708,67925.0,67923.0,0.152224]
[1729854561040,0.1708,67925.0,67923.0,0.152225]
[1729854561464,0.1708,67925.0,67923.0,0.005]
[1729854561903,0.1708,67925.0,67924.0,0.147223]
[1729854562116,0.1708,67925.0,67923.0,0.005]
[1729854562335,0.1708,67925.0,67924.0,0.147223]
[1729854563246,0.1708,67925.0,67923.0,0.005]
[1729854563454,0.1708,67925.0,67923.0,0.152225]
[1729854564551,0.1708,67925.0,67923.0,0.005]
[1729854564765,0.1708,67925.0,67924.0,0.147223]
[1729854564968,0.1708,67925.0,67923.0,0.005]
[1729854565182,0.1708,67925.0,67923.0,0.152223]
[1729854565384,0.1708,67925.0,67923.0,0.005]
[1729854565607,0.1708,67925.0,67924.0,0.147223]
[1729854565821,0.1708,67925.0,67923.0,0.005]
[1729854566040,0.1708,67925.0,67924.0,0.147223]
[1729854566254,0.29656679,67929.0,67923.0,0.005]
[1729854566468,0.29656679,67929.0,67926.0,0.147219]
[1729854566903,0.00568274,67928.0,67926.0,0.147219]
[1729854567324,0.00568274,67928.0,67925.0,0.294439]
[1729854567325,0.00568274,67928.0,67927.0,0.147216]
[1729854568192,0.00568274,67928.0,67924.0,0.294446]
[1729854568401,0.00568274,67928.0,67926.0,0.294437]
[1729854568608,0.00568274,67928.0,67924.0,0.294446]
[1729854568817,0.00568274,67928.0,67926.0,0.147216]
[1729854569287,0.00568274,67928.0,67923.0,0.005]
[1729854569501,0.00568274,67928.0,67926.0,0.147218]
[1729854570551,0.00568274,67928.0,67924.0,0.294443]
[1729854570780,0.00568274,67928.0,67923.0,0.005]
[1729854571195,0.00568274,67928.0,67926.0,0.147218]
[1729854571864,0.00568274,67928.0,67927.0,0.147216]
[1729854572130,0.00568274,67928.0,67925.0,0.14722]
[1729854572352,0.00568274,67928.0,67927.0,0.152216]
[1729854572813,0.000824,67932.0,67931.0,0.147208]
[1729854573238,0.00761917,67932.0,67931.0,0.147208]
[1729854574963,0.000824,67932.0,67931.0,0.147208]
[1729854575641,0.00761917,67932.0,67931.0,0.147208]
[1729854576303,0.000824,67932.0,67931.0,0.147208]
[1729854577204,0.000824,67932.0,67931.0,0.152208]
[1729854578057,0.000824,67932.0,67931.0,0.157208]
[1729854578694,0.000824,67932.0,67931.0,0.250508]
[1729854579580,0.000824,67932.0,67931.0,0.157208]
[1729854581885,0.000824,67932.0,67931.0,0.238408]
[1729854583263,0.000824,67932.0,67931.0,0.162208]
[1729854583471,0.000824,67932.0,67931.0,0.152208]
[1729854583700,0.000824,67932.0,67931.0,0.162208]
[1729854583914,0.000824,67932.0,67931.0,0.157208]
[1729854584138,0.000824,67932.0,67931.0,0.162208]
[1729854584348,0.000824,67932.0,67931.0,0.157208]
[1729854584568,0.000824,67932.0,67931.0,0.162208]
[1729854584771,0.000824,67932.0,67931.0,0.152208]
[1729854585195,0.000824,67932.0,67931.0,0.147208]
[1729854585400,0.00764166,67932.0,67931.0,0.147208]
[1729854585605,0.00764166,67932.0,67931.0,0.152208]
[1729854588163,0.00764166,67932.0,67931.0,0.147208]
[1729854588390,0.00764166,67932.0,67931.0,0.152208]
[1729854588601,0.000824,67932.0,67931.0,0.152208]
[1729854589250,0.00764166,67932.0,67931.0,0.152208]
[1729854590748,0.00764166,67932.0,67931.0,0.147208]
[1729854590998,0.00764166,67932.0,67931.0,0.152208]
[1729854592003,0.000824,67932.0,67931.0,0.152208]
[1729854592327,0.000824,67932.0,67931.0,3.308758]
[1729854592956,0.000824,67932.0,67931.0,3.313758]
[1729854593972,0.000824,67932.0,67931.0,3.31836072]
[1729854596740,0.000824,67932.0,67931.0,3.32336072]
[1729854599440,0.000824,67932.0,67931.0,3.318758]
[1729854599653,0.000824,67932.0,67931.0,3.32336044]
[1729854605546,0.000824,67932.0,67931.0,3.313758]
[1729854605787,0.11569079,67932.0,67931.0,3.31836044]
[1729854605999,0.000824,67932.0,67931.0,3.32336044]
[1729854609190,0.000824,67932.0,67931.0,3.32336049]
[1729854610908,0.000824,67932.0,67931.0,3.31836049]
[1729854611152,0.000824,67932.0,67931.0,3.32336049]
[1729854616115,0.000824,67932.0,67931.0,3.313758]
[1729854616347,0.000824,67932.0,67931.0,3.31836073]
[1729854616582,0.000824,67932.0,67931.0,3.313758]
[1729854617501,0.000824,67932.0,67931.0,3.308758]
[1729854617776,0.000824,67932.0,67931.0,3.303758]
[1729854618728,0.099424,67932.0,67931.0,3.30836099]
[1729854619182,0.099424,67932.0,67931.0,3.303758]
[1729854621641,0.10626235,67932.0,67931.0,0.147208]
[1729854622048,0.00766235,67932.0,67931.0,0.152208]
[1729854622263,0.00766235,67932.0,67931.0,0.157208]
[1729854622703,0.000824,67932.0,67931.0,0.157208]
[1729854622906,0.00766235,67932.0,67931.0,0.157208]
[1729854623287,0.00766235,67932.0,67931.0,0.152208]
[1729854624303,0.00770235,67932.0,67931.0,0.152208]
[1729854624940,0.00770235,67932.0,67931.0,0.147208]
[1729854625294,0.00770235,67932.0,67931.0,0.10315489]
[1729854625573,0.00770235,67932.0,67931.0,0.152208]
[1729854625810,0.00056974,67932.0,67931.0,0.005]
[1729854626048,4e-05,67932.0,67931.0,0.005]
[1729854626267,4e-05,67932.0,67931.0,0.152208]
[1729854626487,4e-05,67932.0,67931.0,0.005]
[1729854626745,4e-05,67932.0,67931.0,0.152208]
[1729854629295,4e-05,67932.0,67931.0,0.005]
[1729854629526,4e-05,67932.0,67931.0,0.147208]
[1729854629749,4e-05,67932.0,67931.0,0.152208]
[1729854629991,4e-05,67932.0,67931.0,0.005]
[1729854630427,4e-05,67932.0,67931.0,0.152208]
[1729854631115,4e-05,67932.0,67931.0,0.147208]
[1729854631338,4e-05,67932.0,67931.0,0.005]
[1729854631559,4e-05,67932.0,67931.0,0.152208]
[1729854632416,4e-05,67932.0,67931.0,0.15681097]
[1729854634414,4e-05,67932.0,67931.0,0.15181097]
[1729854634625,0.000864,67932.0,67931.0,0.15681097]
[1729854635688,0.12629241,67937.0,67932.0,0.147206]
[1729854635900,0.11486679,67936.0,67932.0,0.005]
[1729854636125,0.11486679,67936.0,67932.0,0.152205]
[1729854636366,0.11486679,67936.0,67935.0,0.147199]
[1729854636610,0.11486679,67936.0,67932.0,0.005]
[1729854636882,0.11486679,67936.0,67933.0,0.147203]
[1729854637094,0.11486679,67936.0,67932.0,0.005]
[1729854637822,0.11486679,67936.0,67931.0,0.005]
[1729854638069,0.11486679,67936.0,67932.0,0.152205]
[1729854638754,0.11486679,67936.0,67932.0,0.005]
[1729854638966,0.11490679,67936.0,67932.0,0.152205]
[1729854639183,0.11486679,67933.0,67932.0,0.005]
[1729854639441,0.11486679,67933.0,67932.0,0.00960297]
[1729854639659,0.11486679,67933.0,67932.0,0.00460297]
[1729854640128,0.19426679,67933.0,67932.0,0.00460297]
[1729854641067,0.3447706,67933.0,67932.0,0.00460297]
[1729854641287,0.3447706,67933.0,67926.0,0.22144961]
[1729854641288,0.4422706,67933.0,67926.0,0.22144961]
[1729854641523,0.11486679,67927.0,67926.0,0.22144961]
[1729854641757,0.11486679,67927.0,67926.0,0.22605283]
[1729854642203,0.11486679,67927.0,67926.0,0.00460322]
[1729854644122,0.11486679,67927.0,67926.0,0.15182222]
[1729854644331,0.11486679,67927.0,67926.0,0.00460322]
[1729854644749,0.11486679,67927.0,67926.0,0.15182222]
[1729854644962,0.11486679,67927.0,67926.0,0.00460324]
[1729854646070,0.11490679,67927.0,67926.0,0.00460324]
[1729854647138,4e-05,67927.0,67926.0,0.00460324]
[1729854649384,4e-05,67927.0,67925.0,0.005]
[1729854650058,4e-05,67927.0,67924.0,0.005]
[1729854650920,0.11490679,67927.0,67925.0,0.005]
[1729854651151,0.11490679,67927.0,67923.0,0.15473365]
[1729854651152,0.11490679,67927.0,67924.0,0.005]
[1729854652888,4e-05,67927.0,67924.0,0.152221]
[1729854653315,4e-05,67927.0,67924.0,0.005]
[1729854653530,4e-05,67927.0,67926.0,0.147219]
[1729854654414,4e-05,67927.0,67925.0,0.14722]
[1729854654631,4e-05,67927.0,67926.0,0.147219]
[1729854656162,4e-05,67927.0,67925.0,0.14722]
[1729854656446,4e-05,67927.0,67926.0,0.147219]
[1729854658874,4e-05,67927.0,67926.0,0.148867]
[1729854659952,4e-05,67927.0,67926.0,0.001648]
[1729854660164,4e-05,67927.0,67926.0,0.148867]
[1729854660409,4e-05,67927.0,67926.0,0.001648]
[1729854660664,0.16894,67927.0,67926.0,0.001648]
[1729854664226,0.57431209,67927.0,67926.0,0.001648]
[1729854664480,0.73720492,67927.0,67926.0,0.001648]
[1729854664709,0.82546232,67927.0,67926.0,0.001648]
[1729854664936,0.73720492,67927.0,67926.0,0.001648]
[1729854665401,0.82544933,67927.0,67926.0,0.001648]
[1729854665663,0.73720492,67927.0,67926.0,0.001648]
[1729854665931,0.84752667,67927.0,67926.0,0.001648]
[1729854666179,0.73720492,67927.0,67926.0,0.001648]
[1729854667579,0.85207171,67927.0,67926.0,0.001648]
[1729854668784,0.85407171,67927.0,67926.0,0.001648]
[1729854670202,0.98445781,67927.0,67926.0,0.001648]
[1729854670460,0.85207171,67927.0,67926.0,0.001648]
[1729854671133,0.85407171,67927.0,67926.0,0.001648]
[1729854671363,0.85207171,67927.0,67926.0,0.001648]
[1729854671811,0.95207171,67927.0,67926.0,0.001648]
[1729854672071,0.95407171,67927.0,67926.0,0.001648]
[1729854672321,0.95207171,67927.0,67926.0,0.001648]
[1729854673012,0.95407171,67927.0,67926.0,0.001648]
[1729854673943,0.95207171,67927.0,67926.0,0.001648]
[1729854675368,0.84407752,67927.0,67926.0,0.001648]
[1729854676104,0.844077,67927.0,67926.0,0.001648]
[1729854676809,0.56865981,67927.0,67926.0,0.001648]
[1729854677041,0.84605904,67927.0,67926.0,0.001648]
[1729854678270,0.84405904,67927.0,67926.0,0.001648]
[1729854678511,0.84605904,67927.0,67926.0,0.001648]
[1729854679210,0.99656285,67927.0,67926.0,0.001648]
[1729854679954,0.88169606,67927.0,67926.0,0.001648]
[1729854681675,0.87969606,67927.0,67926.0,0.001648]
[1729854687099,0.73119225,67927.0,67926.0,0.001648]
[1729854687775,0.72919225,67927.0,67926.0,0.001648]
[1729854688231,0.73119225,67927.0,67926.0,0.001648]
[1729854690377,0.73116794,67927.0,67926.0,0.001648]
[1729854690837,0.56226794,67927.0,67926.0,0.001648]
[1729854691582,0.67713473,67927.0,67926.0,0.001648]
[1729854692933,0.76743473,67927.0,67926.0,0.001648]
[1729854693373,0.75569619,67927.0,67926.0,0.001648]
[1729854693637,0.80136958,67927.0,67926.0,0.001648]
[1729854693859,0.75569619,67927.0,67926.0,0.001648]
[1729854694488,0.80137086,67927.0,67926.0,0.001648]
[1729854694730,0.88007086,67927.0,67926.0,0.001648]
[1729854695423,0.76520407,67927.0,67926.0,0.001648]
[1729854695925,0.87807086,67927.0,67926.0,0.001648]
[1729854697679,0.87811086,67927.0,67926.0,0.001648]
[1729854697883,0.88011086,67927.0,67926.0,0.001648]
[1729854699637,0.88022762,67927.0,67926.0,0.001648]
[1729854700320,0.49636083,67927.0,67926.0,0.001648]
[1729854700566,0.60922762,67927.0,67926.0,0.001648]
[1729854700782,0.53680219,67927.0,67926.0,0.001648]
[1729854700998,0.13884527,67927.0,67926.0,0.001648]
[1729854701207,0.29776733,67927.0,67926.0,0.001648]
[1729854701453,0.31979497,67927.0,67926.0,0.001648]
[1729854701664,0.25371206,67927.0,67926.0,0.001648]
[1729854702748,0.46701097,67927.0,67926.0,0.001648]
[1729854702961,0.31979497,67927.0,67926.0,0.001648]
[1729854703169,0.46701097,67927.0,67926.0,0.001648]
[1729854703378,0.40092806,67927.0,67926.0,0.001648]
[1729854703588,0.28606127,67927.0,67926.0,0.001648]
[1729854703819,0.40092806,67927.0,67926.0,0.001648]
[1729854704037,0.25371206,67927.0,67926.0,0.001648]
[1729854704431,0.31982382,67927.0,67926.0,0.001648]
[1729854705272,0.31983417,67927.0,67926.0,0.001648]
[1729854705497,0.25371206,67927.0,67926.0,0.001648]
[1729854705931,0.25371206,67927.0,67926.0,0.19813879]
[1729854706547,0.40092806,67927.0,67926.0,0.19813879]
[1729854707682,0.46705017,67927.0,67926.0,0.19813879]
[1729854708342,0.31983417,67927.0,67926.0,0.19813879]
[1729854709248,0.18104786,67927.0,67926.0,0.19813879]
[1729854709470,0.04413769,67927.0,67926.0,0.37343879]
[1729854709908,4e-05,67927.0,67926.0,0.37343879]
[1729854712308,4e-05,67927.0,67926.0,0.53565779]
[1729854712551,4e-05,67927.0,67926.0,0.53065779]
[1729854712790,4e-05,67927.0,67926.0,0.53565779]
[1729854713006,4e-05,67927.0,67926.0,0.53065779]
[1729854713226,4e-05,67927.0,67926.0,0.53565779]
[1729854714836,4e-05,67927.0,67926.0,0.38843879]
[1729854715045,4e-05,67927.0,67926.0,0.37843879]
[1729854715253,4e-05,67927.0,67926.0,0.53065779]
[1729854716399,4e-05,67927.0,67926.0,0.37343879]
[1729854716614,4e-05,67927.0,67926.0,0.52065779]
[1729854717087,0.000864,67927.0,67926.0,0.37343879]
[1729854717299,0.000864,67927.0,67926.0,0.52565779]
[1729854717946,0.000864,67927.0,67926.0,0.37843879]
[1729854718180,0.000864,67927.0,67926.0,0.52565779]
[1729854719015,0.000864,67927.0,67926.0,0.37843879]
[1729854719230,0.000864,67927.0,67926.0,0.52065779]
[1729854719442,0.000864,67927.0,67926.0,0.52565779]
[1729854719867,0.000864,67927.0,67926.0,0.37843879]
[1729854720084,0.000864,67927.0,67926.0,0.19813879]
[1729854720318,0.15008,67927.0,67926.0,0.19813879]
[1729854720533,0.30058381,67927.0,67926.0,0.19813879]
[1729854721173,0.29858381,67927.0,67926.0,0.19813879]
[1729854724439,0.3426452,67927.0,67926.0,0.19813879]
[1729854724701,0.30058381,67927.0,67926.0,0.19813879]
[1729854724943,0.46112313,67927.0,67926.0,0.19813879]
[1729854725416,0.46312313,67927.0,67926.0,0.19813879]
[1729854725627,0.54924591,67927.0,67926.0,0.19813879]
[1729854725868,0.61162694,67927.0,67926.0,0.19813879]
[1729854726104,0.61162694,67927.0,67926.0,0.001648]
[1729854726345,0.63391614,67927.0,67926.0,0.001648]
[1729854726568,0.48341233,67927.0,67926.0,0.001648]
[1729854727038,0.5714788,67927.0,67926.0,0.001648]
[1729854727264,0.59149542,67927.0,67926.0,0.001648]
[1729854727734,0.48141233,67927.0,67926.0,0.001648]
[1729854728185,0.59151043,67927.0,67926.0,0.001648]
[1729854728446,0.48141233,67927.0,67926.0,0.001648]
[1729854729482,0.61950916,67927.0,67926.0,0.001648]
[1729854729714,0.62150916,67927.0,67926.0,0.001648]
[1729854730135,0.61950916,67927.0,67926.0,0.001648]
[1729854731390,0.71920916,67927.0,67926.0,0.001648]
[1729854733093,0.83407595,67927.0,67926.0,0.001648]
[1729854733311,0.71920916,67927.0,67926.0,0.001648]
[1729854736068,0.56157711,67927.0,67926.0,0.001648]
[1729854740384,0.66161132,67927.0,67926.0,0.001648]
[1729854741719,0.66243532,67927.0,67926.0,0.001648]
[1729854744328,1.00243532,67927.0,67926.0,0.001648]
[1729854745252,1.00443532,67927.0,67926.0,0.001648]
[1729854745699,1.10717686,67927.0,67926.0,0.001648]
[1729854750018,1.10714656,67927.0,67926.0,0.001648]
[1729854750474,1.00240502,67927.0,67926.0,0.001648]
[1729854751356,1.04807045,67927.0,67926.0,0.001648]
[1729854752245,1.16493724,67927.0,67926.0,0.001648]
[1729854754946,1.16492703,67927.0,67926.0,0.001648]
[1729854757973,1.16292703,67927.0,67926.0,0.001648]
[1729854758206,1.263666,67927.0,67926.0,0.001648]
[1729854759561,1.10112773,67927.0,67926.0,0.001648]
[1729854759784,1.16403489,67927.0,67926.0,0.001648]
[1729854760502,1.06329592,67927.0,67926.0,0.001648]
[1729854761341,1.1954465,67927.0,67926.0,0.001648]
[1729854762281,1.06329592,67927.0,67926.0,0.001648]
[1729854762705,1.06529592,67927.0,67926.0,0.001648]
[1729854764225,1.06329592,67927.0,67926.0,0.001648]
[1729854764714,1.06529592,67927.0,67926.0,0.001648]
[1729854765384,1.06564312,67927.0,67926.0,0.001648]
[1729854765603,1.06364312,67927.0,67926.0,0.001648]
[1729854766509,1.06364312,67927.0,67902.0,0.22144961]
[1729854766510,0.147268,67903.0,67902.0,0.22144961]
[1729854766728,0.69245975,67903.0,67902.0,0.22144961]
[1729854767190,0.149275,67900.0,67897.0,0.0979]
[1729854767411,0.31222936,67900.0,67897.0,0.0979]
[1729854767636,0.69246675,67900.0,67897.0,0.0979]
[1729854768623,0.80309344,67900.0,67897.0,0.0979]
[1729854768838,0.80109344,67900.0,67897.0,0.0979]
[1729854769047,0.80302793,67900.0,67897.0,0.0979]
[1729854769483,0.80269489,67900.0,67897.0,0.0979]
[1729854770148,0.80069489,67900.0,67897.0,0.0979]
[1729854770612,0.69240124,67900.0,67897.0,0.0979]
[1729854772739,0.78058834,67900.0,67897.0,0.0979]
[1729854772969,0.69240124,67900.0,67897.0,0.0979]
[1729854773674,0.93107988,67900.0,67897.0,0.0979]
[1729854773901,0.55069808,67900.0,67897.0,0.0979]
[1729854774133,0.78043166,67900.0,67897.0,0.0979]
[1729854774598,0.69225687,67900.0,67897.0,0.0979]
[1729854774826,0.46252329,67900.0,67897.0,0.0979]
[1729854775059,0.52951239,67900.0,67897.0,0.0979]
[1729854775296,0.59563238,67900.0,67897.0,0.0979]
[1729854776001,0.52951239,67900.0,67897.0,0.0979]
[1729854776430,0.59563238,67900.0,67897.0,0.0979]